Cogmind - Beta 11 X8 @@@ ROGUE MODE // 2021.12.09 @ 11:33:50 Player: btmk16 Result: Destroyed by D-53 Grenadier with Mini Grenade Launcher Performance ------------- Evolutions (0) 0 Regions Visited (4) 800 Robots Destroyed (17) 85 Value Destroyed (477) 477 Prototype IDs (0) 0 Alien Tech Used (0) 0 Bonus (-287) -287 TOTAL SCORE: 1075 Bonus ------- Follower Combat Kills 25 Friendly Fire -312 Cogmind --------- Core Integrity 0/250 Matter 243/300 Energy 244/250 System Corruption 1% Temperature Warm (124) Movement Rolling (115) Ox1 Location -9/Mines Parts ------- > --- POWER (1) -------- Ion Engine > --- PROPULSION (2) --- Compact Wheel > --- UTILITY (2) ------ Medium Storage Unit > --- WEAPON (2) ------- Makeshift Laser > --- INVENTORY (10) --- Ion Engine Light Treads Improved Heat Sink Light Armor Plating Autogun Autogun Mini Grenade Launcher Mini Grenade Launcher Mini Grenade Launcher Mini Grenade Launcher Peak State ------------ > --- POWER ------------ Ion Engine > --- PROPULSION ------- Compact Wheel Compact Wheel > --- UTILITY ---------- Medium Storage Unit Light Armor Plating > --- WEAPON ----------- Makeshift Laser Autogun > --- INVENTORY -------- Ion Engine Light Treads Improved Heat Sink Light Armor Plating Autogun Autogun Mini Grenade Launcher Mini Grenade Launcher Mini Grenade Launcher Mini Grenade Launcher [Rating: 12] Favorites ----------- Power Ion Engine Engine Ion Engine Propulsion Compact Wheel Leg Aluminum Leg Wheel Compact Wheel Utility Light Armor Plating Device Improved Heat Sink Storage Medium Storage Unit Protection Light Armor Plating Weapon Autogun Energy Gun Makeshift Laser Ballistic Gun Autogun Launcher Mini Grenade Launcher Build | -11 -10 -10 -10 -9 ------- Run | Scr Mat Min Exi Min Slots Evolved . | . . . . . Power . | . . . . . Propulsion . | . . . . . Utility . | . . . . . Weapon . | . . . . . Parts Attached 25 | . 19 2 1 3 Power 3 | . 2 . . 1 Engine 3 | . 2 . . 1 Core . | . . . . . Reactor . | . . . . . Propulsion 9 | . 9 . . . Treads . | . . . . . Leg 7 | . 7 . . . Wheel 2 | . 2 . . . Hover . | . . . . . Flight . | . . . . . Utility 5 | . 5 . . . Device 2 | . 2 . . . Storage 1 | . 1 . . . Processor . | . . . . . Hackware . | . . . . . Protection 2 | . 2 . . . Artifact . | . . . . . Weapon 8 | . 3 2 1 2 Energy Gun 1 | . . . 1 . Energy Cannon . | . . . . . Ballistic Gun 5 | . 3 1 . 1 Ballistic Cannon . | . . . . . Launcher 2 | . . 1 . 1 Special Weapon . | . . . . . Impact Weapon . | . . . . . Slashing Weapon . | . . . . . Piercing Weapon . | . . . . . Special Melee Weapon . | . . . . . Unidentified Prototypes . | . . . . . Parts Lost 3 | . . . . 3 Power . | . . . . . Propulsion 1 | . . . . 1 Utility 1 | . . . . 1 Weapon 1 | . . . . 1 Highest Loss Streak 3 | . . . . 3 Average Slot Usage (%) 98 | . 96 100 100 92 Engine 14 | . 14 14 14 14 Leg 10 | . 23 . . . Wheel 17 | . 4 28 28 24 Storage 14 | . 14 14 14 14 Protection 12 | . 9 14 14 12 Energy Gun 3 | . 1 . 4 14 Ballistic Gun 23 | . 26 26 23 3 Naked Turns . | . . . . . Heaviest Build 24 | 12 24 24 24 23 Greatest Support 32 | 20 32 32 32 32 Greatest Overweight (x) 1 | . 1 . . . Average Overweight (x) . | . . . . . Largest Inventory Capacity 10 | . 10 10 10 10 Average Capacity 9 | . 8 10 10 10 Most Carried 10 | . 10 10 10 10 Average Carried 9 | . 8 10 10 10 Final Capacity 10 | 8 10 10 10 10 Final Carried 10 | 6 10 10 10 10 Class Distribution -------------------- 100% | Mutant Dominant Class ---------------- Mutant | -10/Materials Mutant | -10/Mines Mutant | -10/Exiles Mutant | -9/Mines Resources | -11 -10 -10 -10 -9 ----------- Run | Scr Mat Min Exi Min Matter Collected 685 | 200 307 . . 178 Remotely . | . . . . . Salvage Created 566 | . 444 1 . 121 Parts 29 | . 21 4 . 4 Haulers Intercepted 1 | . 1 . . . Recyclers Shooed . | . . . . . Parts Field Recycled . | . . . . . Retrieved Matter . | . . . . . Parts Self-Destructed . | . . . . . Prevented . | . . . . . Kills | -11 -10 -10 -10 -9 ------- Run | Scr Mat Min Exi Min Combat Hostiles Destroyed 21 | . 9 3 . 9 Guns 12 | . 9 1 . 2 AOE 9 | . . 2 . 7 Classes Destroyed 7 | . 2 1 . 4 Hauler 1 | . 1 . . . Swarmer 3 | . . 3 . . Grunt 10 | . 9 . . 1 Duelist 1 | . . . . 1 Demolisher 1 | . . . . 1 Hunter 1 | . . . . 1 Assembled 7 | . . . . 7 Best Kill Streak 8 | . 3 2 . 8 Combat Bots Only 8 | . 3 2 . 8 Max Kills in Single Turn 5 | . 1 1 . 5 Gunslinging . | . . . . . Exploded 4 | . . 1 . 4 Melee . | . . . . . Uniques/NPCs Destroyed . | . . . . . Combat | -11 -10 -10 -10 -9 -------- Run | Scr Mat Min Exi Min Damage Taken 961 | . 390 47 . 524 Core 264 | . 38 15 . 211 Absorbed by Shields . | . . . . . Core Remaining (%) 100 | 100 . . . . Volleys Fired 49 | . 31 5 . 13 Largest 2 | . 2 2 . 2 Hottest 73 | . 60 53 . 73 Shots Fired 92 | . 62 10 . 20 Gun 85 | . 62 8 . 15 Cannon . | . . . . . Launcher 7 | . . 2 . 5 Special . | . . . . . Kinetic 74 | . 59 8 . 7 Thermal 8 | . . . . 8 Explosive 7 | . . 2 . 5 Electromagnetic 3 | . 3 . . . Robot Hit Streak 8 | . 8 1 . 8 Robot Miss Streak 5 | . 2 5 . 3 Penetration Max . | . . . . . Secondary Targets 3 | . 2 . . 1 Max Gunslinging Chain 1 | . 1 . . 1 Shots Hit Robots 58 | . 45 2 . 11 Core Hits 45 | . 22 3 . 20 Critical Kills . | . . . . . Critical Parts Destroyed . | . . . . . Critical Strikes . | . . . . . Melee Attacks . | . . . . . Impact . | . . . . . Slashing . | . . . . . Piercing . | . . . . . Sneak Attacks . | . . . . . Combat Hostiles . | . . . . . Follow-up Attacks . | . . . . . Damage Inflicted 1651 | . 564 302 . 785 Guns 746 | . 564 18 . 164 Cannons . | . . . . . Explosions 905 | . . 284 . 621 Melee . | . . . . . Ramming . | . . . . . Kinetic 621 | . 524 18 . 79 Thermal 85 | . . . . 85 Explosive 905 | . . 284 . 621 Electromagnetic 40 | . 40 . . . Impact . | . . . . . Slashing . | . . . . . Piercing . | . . . . . Highest Corruption 1 | . 1 1 1 1 Average Corruption 1 | . 1 1 1 1 Corruption Purged . | . . . . . Effects 4 | . 2 . 2 . Message Errors 2 | . 2 . . . Data Loss (minor) 2 | . . . 2 . Overload Shots . | . . . . . Overflow Damage 45 | . . 24 . 21 Projectiles . | . . . . . Explosions 45 | . . 24 . 21 Melee . | . . . . . Knockbacks . | . . . . . Impact . | . . . . . Kinetic . | . . . . . Secondary . | . . . . . Self-Inflicted Damage 61 | . . . . 61 Shots 2 | . . . . 2 Rammed . | . . . . . Targets Rammed . | . . . . . Kicked . | . . . . . Crushed . | . . . . . Highest Temperature 139 | . 20 24 . 139 Average Temperature 29 | . 6 11 . 57 Received Heat Transfer 289 | . 237 . . 52 Siege Activations . | . . . . . Robots Corrupted . | . . . . . Combat Hostiles . | . . . . . Parts Fried . | . . . . . Impact Corruptions . | . . . . . Robots Melted . | . . . . . Combat Hostiles . | . . . . . Parts Melted 2 | . . . . 2 Heat Transferred 185 | . . . . 185 Parts Sabotaged . | . . . . . Parts Stolen . | . . . . . Parts Stripped . | . . . . . Power Chain Reactions . | . . . . . Missiles Intercepted . | . . . . . Alert | -11 -10 -10 -10 -9 ------- Run | Scr Mat Min Exi Min Peak Influence 282 | . 282 116 . 73 Initial 31 | . . 31 . . Average 133 | . 152 105 . 47 Maximum Alert Level 1 | . 1 . . . Low Security (%) 79 | . 71 100 . 100 Level 1 20 | . 28 . . . Level 2 . | . . . . . Level 3 . | . . . . . Level 4 . | . . . . . Level 5 . | . . . . . High Security . | . . . . . Max Security . | . . . . . Squads Dispatched 3 | . 3 . . . Investigation 3 | . 3 . . . Extermination . | . . . . . Reinforcement . | . . . . . Assault . | . . . . . Garrison . | . . . . . Intercept . | . . . . . Construction Impeded . | . . . . . Haulers Reinforced . | . . . . . Active Scanning Responses . | . . . . . Cargo Convoy Interrupts . | . . . . . Stealth | -11 -10 -10 -10 -9 --------- Run | Scr Mat Min Exi Min Distress Signals . | . . . . . Communications Jammed . | . . . . . Distress Signals . | . . . . . Times Spotted 26 | . 11 4 . 11 Peak Tracking Total 7 | . 2 3 . 7 Tactical Retreats 1 | . . 1 . . Traps | -11 -10 -10 -10 -9 ------- Run | Scr Mat Min Exi Min Traps Triggered . | . . . . . Indirectly . | . . . . . Trap Hack Attempts . | . . . . . Triggered . | . . . . . Disarmed . | . . . . . Reprogrammed . | . . . . . Reused . | . . . . . Traps Extracted . | . . . . . Installed . | . . . . . Triggered . | . . . . . Machines | -11 -10 -10 -10 -9 ---------- Run | Scr Mat Min Exi Min Machines Disabled . | . . . . . Max in Single Turn . | . . . . . Machines Sabotaged . | . . . . . Garrisons Compromised . | . . . . . Overloaded Fab Kills . | . . . . . Hacking | -11 -10 -10 -10 -9 --------- Run | Scr Mat Min Exi Min Machines Accessed 4 | . 3 . 1 . Terminals 2 | . 2 . . . Fabricators . | . . . . . Repair Stations . | . . . . . Recycling Units 1 | . 1 . . . Scanalyzers . | . . . . . Garrison Access . | . . . . . Total Hacks 13 | . 8 . 5 . Successful 9 | . 4 . 5 . Failed 4 | . 4 . . . Catastrophic 1 | . 1 . . . Database Lockouts . | . . . . . Manual 5 | . 4 . 1 . Terminals 7 | . 7 . . . Fabricators . | . . . . . Repair Stations . | . . . . . Recycling Units 1 | . 1 . . . Scanalyzers . | . . . . . Garrison Access . | . . . . . Terminal Hacks 8 | . 3 . 5 . Record 5 | . . . 5 . Robot Analysis 1 | . 1 . . . Alert Level 1 | . 1 . . . Hauler Manifests 1 | . 1 . . . Fabricator Hacks . | . . . . . Repair Station Hacks . | . . . . . Recycling Unit Hacks . | . . . . . Scanalyzer . | . . . . . Garrison Access Hacks . | . . . . . Unauthorized Hacks 1 | . 1 . . . Terminals . | . . . . . Fabricators . | . . . . . Repair Stations . | . . . . . Recycling Units 1 | . 1 . . . Tunnel 1 | . 1 . . . Scanalyzers . | . . . . . Garrison Access . | . . . . . Data Cores Recovered . | . . . . . Used . | . . . . . Hacking Detections 2 | . 2 . . . Full Trace Events 2 | . 2 . . . Feedback Events 1 | . 1 . . . Corruption 1 | . 1 . . . Feedback Blocked . | . . . . . Robot Schematics Acquired . | . . . . . Robots Built . | . . . . . Authchips . | . . . . . Time . | . . . . . Total Robot Build Rating . | . . . . . Part Schematics Acquired . | . . . . . Parts Built . | . . . . . Authchips . | . . . . . Time . | . . . . . Total Part Build Rating . | . . . . . Parts Repaired . | . . . . . Time . | . . . . . Parts Recycled . | . . . . . Recycled Matter . | . . . . . Retrieved Matter . | . . . . . Retrieved Components . | . . . . . Parts Scanalyzed . | . . . . . Part Schematics Acquired . | . . . . . Parts Damaged . | . . . . . Bothacking | -11 -10 -10 -10 -9 ------------ Run | Scr Mat Min Exi Min Used RIF Installer . | . . . . . Robots Hacked . | . . . . . Non-combat . | . . . . . Combat . | . . . . . Robot Hacks Applied . | . . . . . Relay Couplers Released . | . . . . . Fabnet Peak Effective % . | . . . . . Robots Rewired 3 | . . . 3 . Allies Hacked . | . . . . . Hacks Repelled . | . . . . . Allies | -11 -10 -10 -10 -9 -------- Run | Scr Mat Min Exi Min Total Allies 3 | . . . 3 . Largest Group 3 | . . . 3 3 Highest-Rated Group 37 | . . . 37 37 Highest-Rated Ally 21 | . . . 21 21 Total Orders . | . . . . . Ally Attacks 11 | . . . . 11 Total Damage 122 | . . . . 122 Kills 2 | . . . . 2 Allies Corrupted . | . . . . . Allies Melted . | . . . . . Intel | -11 -10 -10 -10 -9 ------- Run | Scr Mat Min Exi Min Robot Analysis Total 1 | . 1 . . . Derelict Logs Recovered . | . . . . . Drone Launches . | . . . . . Drone Recoveries . | . . . . . Exploration | -11 -10 -10 -10 -9 ------------- Run | Scr Mat Min Exi Min Turns Passed 1210 | . 527 117 486 80 Spaces Moved 865 | 1 262 98 460 44 Core . | . . . . . Treads . | . . . . . Legs 194 | 1 193 . . . Wheels 671 | . 69 98 460 44 Hover . | . . . . . Flight . | . . . . . Fastest Speed 100 | 120 100 100 100 100 Average Speed 108 | 120 128 100 100 100 Slowest Speed 190 | 120 190 100 100 100 Overloaded Moves . | . . . . . Propulsion Burnouts . | . . . . . Robots Hopped . | . . . . . Cave-ins Triggered . | . . . . . Exploration Rate (%) 33 | 1 33 30 90 14 Regions Visited 4 Branch Regions 3 Pre-discovered Areas 2 | . 1 . 1 . Known Exits Taken . | . . . . . Unknown Exits Taken 4 | 1 1 1 1 . Scrap Searched . | . . . . . Spaces Dug 30 | . . . . 30 Terrain Destroyed 63 | . . 14 . 49 Melee . | . . . . . Projectile . | . . . . . AOE 63 | . . 14 . 49 Terrain Rammed . | . . . . . Walls Destroyed . | . . . . . Machines Disabled . | . . . . . Actions | -11 -10 -10 -10 -9 --------- Run | Scr Mat Min Exi Min Total 1052 | . 398 107 486 61 Wait 64 | . 57 3 4 . Move 861 | . 261 97 459 44 Hop . | . . . . . Pick Up 9 | . 9 . . . Fast Attach 3 | . 2 . 1 . Attach . | . . . . . Detach 1 | . 1 . . . Swap 22 | . 17 2 . 3 Drop 22 | . 20 . 1 1 Fire 49 | . 31 5 . 13 Melee . | . . . . . Ram . | . . . . . Kick . | . . . . . Crush . | . . . . . Escape Stasis . | . . . . . Rewire 21 | . . . 21 . Trap . | . . . . . Miscellaneous . | . . . . . Route ------- -11/Scrapyard -10/Materials -10/Mines -10/Exiles (discovered 2 exits: [*Min x2]) -9/Mines History --------- Turn | Location | Event 1 | -11/Scrapyard | Discovered new exit (range 0) 1 | -11/Scrapyard | Entered Materials 315 | -10/Materials | Build established: Mutant 319 | -10/Materials | Discovered new exit (range 12) 528 | -10/Materials | Entered Mines 641 | -10/Mines | Deemed a non-threat by the Exiles lab entrance 641 | -10/Mines | Discovered new exit (range 5) 645 | -10/Mines | Entered Exiles 645 | -10/Exiles | Found Exiles lab destroyed 662 | -10/Exiles | Discovered new exit (range 15) 1040 | -10/Exiles | Learned location of Zion (-7) 1117 | -10/Exiles | Discovered new exit (range 12) 1131 | -10/Exiles | Entered Mines 1131 | -9/Mines | Accompanied by 3 allies 1132 | -9/Mines | Assembled infested the area 1179 | -9/Mines | Destroyed 8 combat bots 1198 | -9/Mines | Core integrity fell below 50% 1202 | -9/Mines | Core integrity fell below 20% 1211 | -9/Mines | Destroyed by D-53 Grenadier with Mini Grenade Launcher Last Messages --------------- 01161_ Acquired 5 matter. 01163_ Acquired 45 matter. 01164_ The unstable cave ceiling collapses. 01169_ Dropped Ion Engine. 01173_ The unstable cave ceiling collapses. 01195_ Pressure Siphon disabled. 01195_ Com. Wheel destroyed. 01196_ K-01 Serf collects debris. 01201_ Launcher Guidance Computer melted. 01201_ D-53 Grenadier destroyed. 01202_ The unstable cave ceiling collapses. 01202_ K-01 Serf collects debris. 01204_ The unstable cave ceiling collapses. 01205_ K-01 Serf collects debris. 01209_ The unstable cave ceiling collapses. 01209_ Cmb. Airjet crushed. 01209_ The unstable cave ceiling collapses. 01209_ Autogun destroyed. 01209_ Lgt. Armor Plating destroyed. 01211_ The unstable cave ceiling collapses. Map ----- +----------------------------------------------------+ | | | | | | | | | | | | | | | | | | | ?????????????????????????????????????????????????? | | ?????????????????????????????????????????????????? | | ?????????????????????????????????????????????????? | | ????##########???????????????????????????????????? | | ???## = =##??????????????????????????????????? | | ??## = [ #??????????###?????????????????????? | | ??# #?????????? ?????????????????????? | | ??# #?????????# #?????????????????????? | | ??## ##?????????# #?????????????????????? | | ???### ##########??# #???????#?????????????? | | ?????## ### #### #????? ??????????????? | | ??????## * [# # ## ##??? #???????????????? | | ???????## [ ### #???????????????? | | ????????## [ #???????????????? | | ?????????##### # # #???????????????? | | ?????????????# %# k #???????????????? | | ?????????? d @ u#??????????????? | | ??????? # # #??????????????? | | ??????? ### #?????????????? | | ??????? ??######## #???????????? | | ?????? ??????????## # ## #??????????? | | ?????? ???????????# # #?? #??????????? | | ?????? ????????????# # ##??? t #??????????? | | ?????? #????????????? ###?????? ##??????????? | | ???????#?????????????? #????????? #???????????? | | ????????????????????? ???????????????????????? | | ????????????????????? #???????????????????????? | | ????????????????????? #????????????????????????? | | ????????????????????# ?????????????????????????? | | ????????????????????## ?????????????????????????? | | ?????????????????????# ?????????????????????????? | | ?????????????????????????????????????????????????? | | ?????????????????????????????????????????????????? | | ?????????????????????????????????????????????????? | | ?????????????????????????????????????????????????? | | ?????????????????????????????????????????????????? | | ?????????????????????????????????????????????????? | | ?????????????????????????????????????????????????? | | ?????????????????????????????????????????????????? | | ?????????????????????????????????????????????????? | | ?????????????????????????????????????????????????? | +----------------------------------------------------+ Best States ------------- Heat Dissipation 39 Energy Generation 10 Energy Capacity 250 Matter Stores 300 Matter Capacity 300 Sight Range 16 Terrain Scan Density 10 Armor Coverage 150 Evasion (%) 55 Item Schematics ----------------- None Robot Schematics ------------------ None Fabricated ------------ Nothing Alien Tech Used ----------------- None Achievements -------------- None Challenges ------------ None Game ------ Seed HoverSingularityArray Manual? 0 Play Time 00:10:32 Cumulative 176.3 hours Start 2021.12.09 @ 11:17:48 End 2021.12.09 @ 11:33:50 Sessions 1 Manual Loads 0 Difficulty Rogue Special Mode None Game No. 241 Rogue 241 Adventurer 0 Explorer 0 Win Type - Total 2 Types 2/0/0/0/0/0/0/0/0 Lore% 59 Gallery% 72 Achievement% 51 Wizard Run 0 Options --------- ASCII 0 Keyboard 1 Movement Vi Keybinds 0 Fullscreen 1 Font 16/Cog Map View 76x50 Tactical HUD 1 Map Filters NONE Filters NONE Steam 1 RUN: 128ebba0-6316-4e19-84df-4851703c4cb2